fUSD/lending_fUSD_20240706
["ID","MTS","AMOUNT","RATE_DAILY","PERIOD"]
[331333229,1720247499370,-628.77698747,0.00032281,30]
[331333230,1720247499405,-500.0,0.00032281,30]
[331333231,1720247499439,-500.0,0.00032281,30]
[331333232,1720247499471,-500.0,0.00032281,30]
[331333233,1720247499505,-929.51,0.00032281,30]
[331333234,1720247499537,-500.0,0.00032281,30]
[331333235,1720247499570,-500.0,0.00032281,30]
[331333236,1720247499604,-500.0,0.00032281,30]
[331333237,1720247499637,-929.51,0.00032281,30]
[331333238,1720247499674,-500.0,0.00032281,30]
[331333239,1720247499711,-409.44357417,0.00032281,30]
[331333240,1720247499745,-500.0,0.00032281,30]
[331333241,1720247499782,-500.0,0.00032281,30]
[331333242,1720247499818,-432.12274951,0.00032281,30]
[331333243,1720247499850,-500.0,0.00032281,30]
[331333244,1720247499886,-527.32157526,0.00032281,30]
[331333245,1720247499919,-500.0,0.00032281,30]
[331333246,1720247499953,-500.0,0.00032281,30]
[331333247,1720247499986,-500.0,0.00032281,30]
[331333248,1720247500020,-929.51,0.00032281,30]
[331333249,1720247500058,-500.0,0.00032281,30]
[331333250,1720247500095,-500.0,0.00032281,30]
[331333251,1720247500131,-500.0,0.00032281,30]
[331333252,1720247500166,-187.9180565,0.00032281,30]
[331333253,1720247500199,-500.0,0.00032281,30]
[331333254,1720247500232,-500.0,0.00032281,30]
[331333255,1720247500267,-929.51,0.00032281,30]
[331333256,1720247500300,-500.0,0.00032281,30]
[331333257,1720247500334,-500.0,0.00032281,30]
[331333258,1720247500765,-500.0,0.00032281,30]
[331333259,1720247500798,-500.0,0.00032281,30]
[331333260,1720247500831,-500.0,0.00032281,30]
[331333261,1720247500866,-507.13531293,0.00032281,30]
[331333262,1720247500898,-500.0,0.00032281,30]
[331333263,1720247501233,-358.28262559,0.00032281,30]
[331333264,1720247501266,-500.0,0.00032281,30]
[331333265,1720247501299,-585.86423357,0.00032281,30]
[331333266,1720247514761,-400.0,0.00012314,2]
[331333267,1720247514770,-47.53187127,0.000126,2]
[331333268,1720247514782,-102.46812873,0.000126,2]
[331333269,1720247514792,-575.0,0.00013448,2]
[331333270,1720247514802,-1278.08141606,0.00013472,2]
[331333271,1720247514812,-2438.2146276,0.00013975,2]
[331333272,1720247514822,-1933.0353963,0.00013999,2]
[331333273,1720247514833,-494.71456332,0.00013999,2]
[331333274,1720247514843,-212.02052713,0.00013999,2]
[331333275,1720247514853,-3597.0091113,0.00014,2]
[331333276,1720247514865,-569.99999994,0.00014,2]
[331333277,1720247514877,-351.899999,0.00014,2]
[331333278,1720247514890,-12611.04820383,0.00014,2]
[331333279,1720247514902,-7800.69533894,0.00014,2]
[331333280,1720247514914,-1395.41908041,0.00014,2]
[331333281,1720247514926,-1705.66129336,0.00014,2]
[331333282,1720247515027,-474.46635641,0.00014,2]
[331333283,1720247515039,-1339.32568212,0.00014,2]
[331333284,1720247515051,-1024.46733529,0.00014,2]
[331333285,1720247515063,-1062.65487109,0.00014,2]
[331333286,1720247515075,-17994.43940248,0.00014,2]
[331333287,1720247515087,-15950.86851453,0.00014,2]
[331333288,1720247515099,-422.76314946,0.00014,2]
[331333289,1720247515110,-2478.29101073,0.00014,2]
[331333290,1720247515122,-849.96717983,0.00014,2]
[331333291,1720247515136,-650.23905597,0.00014,2]
[331333292,1720247515148,-235205.00818995,0.00014,2]
[331333293,1720247515160,-905.34153942,0.00014,2]
[331333294,1720247515173,-560.2023371,0.00014,2]
[331333295,1720247515184,-315.0,0.00014,2]
[331333296,1720247515196,-3210.85387545,0.00014,2]
[331333297,1720247515207,-788315.13608625,0.00014,2]
[331333298,1720247515219,-2719.05049637,0.00014,2]
[331333299,1720247515231,-1381.95190557,0.00014,2]
[331333300,1720247515242,-431.18512968,0.00014,2]
[331333301,1720247515258,-9741.80218521,0.00014,2]
[331333302,1720247515276,-1272.24,0.00014,2]
[331333303,1720247515293,-860.35582076,0.00014,2]
[331333304,1720247515310,-521.97670531,0.00014,2]
[331333305,1720247515323,-679.83163208,0.00014,2]
[331333306,1720247518139,-775.22471098,0.000125,2]
[331333307,1720247518156,-313.27,0.000125,2]
[331333308,1720247518167,-254.99999,0.000125,2]
[331333309,1720247518179,-923.28319902,0.000125,2]
[331333310,1720247518188,-416.98156859,0.00013975,2]
[331333311,1720247518199,-1258.28539142,0.00013975,2]
[331333312,1720247518210,-413.27020903,0.00013975,2]
[331333313,1720247518220,-4494.39994328,0.00013975,2]
[331333314,1720247518230,-612.8173788,0.0001399,3]
[331333315,1720247518242,-16.7426212,0.0001399,3]
[331333316,1720247518252,-6776.90515947,0.00014,2]
[331333317,1720247518263,-400996.28766557,0.00014,2]
[331333318,1720247518275,-5751.94436489,0.00014,2]
[331333319,1720247518286,-2506.77543946,0.00014,2]
[331333320,1720247518298,-2604.69232305,0.00014,2]
[331333321,1720247518310,-7969.17193469,0.00014,2]
[331333322,1720247518321,-3386.27530717,0.00014,2]
[331333323,1720247518333,-17493.33481061,0.00014,2]
[331333324,1720247518344,-662.94200007,0.00014,2]
[331333325,1720247518355,-760.703511,0.00014,2]
[331333326,1720247518366,-27855.49381149,0.00014,2]
[331333327,1720247518378,-10658.55315889,0.00014,2]
[331333328,1720247518389,-18641.9194012,0.00014,2]
[331333329,1720247518405,-1876.900965,0.00014,2]
[331333330,1720247518416,-484.04490237,0.00014,2]
[331333331,1720247518427,-1061.95558653,0.00014,2]
[331333332,1720247518438,-290.31856456,0.00014,2]
[331333333,1720247518448,-439.1278183,0.00014,2]
[331333334,1720247518460,-4756.47301503,0.00014,2]
[331333335,1720247518471,-648.10177974,0.00014,2]
[331333336,1720247518483,-4209.38284784,0.00014,2]
[331333337,1720247518495,-528.39896365,0.00014,2]
[331333338,1720247518506,-1651.94935281,0.00014,2]
[331333339,1720247518518,-10852.37161413,0.00014,2]
[331333340,1720247518722,-785.23100942,0.00014,2]
[331333341,1720247518733,-31778.36654774,0.00014,2]
[331333342,1720247518745,-2662.14219701,0.00014,2]
[331333343,1720247518758,-584.18096118,0.00014,2]
[331333344,1720247518768,-2676.10473281,0.00014,2]
[331333345,1720247518779,-7214.73959698,0.00014,2]
[331333346,1720247518790,-1145.08013776,0.00014,2]
[331333347,1720247518801,-11216.25702667,0.00014,2]
[331333348,1720247519431,-16182.73323215,0.00014,2]
[331333349,1720247519442,-454.18508886,0.00014,2]
[331333350,1720247519453,-85577.87283358,0.00014,2]
[331333351,1720247519575,-1363.54262393,0.00014,2]
[331333352,1720247519587,-14639.47717912,0.00014,2]
[331333353,1720247519599,-146189.00560603,0.00014,2]
[331333354,1720247519611,-499.46992553,0.00014,2]
[331333355,1720247519622,-476.45777715,0.00014,2]
[331333356,1720247519635,-1133.09,0.00014,2]
[331333357,1720247519653,-897.53,0.00014,2]
[331333358,1720247519665,-52877.57373107,0.00014,2]
[331333359,1720247519681,-3377.27348193,0.00014,2]
[331333360,1720247519694,-380.35540917,0.00014,2]
[331333361,1720247522011,-660.33561149,0.00014,2]
[331333362,1720247522024,-329.70014336,0.00014,2]
[331333363,1720247522037,-269.50157283,0.00014,2]
[331333364,1720247522256,-364.40324563,0.00014,2]
[331333365,1720247522269,-2580.0,0.00014,2]
[331333366,1720247522281,-6363.65315546,0.00014,2]
[331333367,1720247526954,300.5448887,0.00011198,2]
[331333368,1720247651282,290.114608,0.00013573,30]
[331333369,1720247673411,400.0,0.00011199,2]
[331333370,1720247762607,394.7328968,0.00011199,2]
[331333371,1720247819098,955.85753929,0.00011199,2]
[331333372,1720247872760,156.53657659,0.00025,60]
[331333373,1720247904205,155.10723618,0.00011199,2]
[331333374,1720247942478,242.49333518,0.00011199,2]
[331333375,1720247943001,218.21455427,0.00011199,2]
[331333376,1720247944315,379.089191,0.00011199,2]
[331333377,1720247992420,346.5178534,0.00011199,2]
[331333378,1720248017870,155.92874629,0.00011199,2]
[331333379,1720248025162,199.39547134,0.00011199,2]
[331333380,1720248055701,269.66585557,0.00011199,2]
[331333381,1720248269477,1903.87811977,0.00011199,2]
[331333382,1720248367996,242.37427876,0.00011199,2]
[331333383,1720248369246,218.11385927,0.00011199,2]
[331333384,1720248433475,3000.0,0.00025,60]
[331333390,1720248441695,155.0,0.00011199,2]
[331333404,1720248505949,477.79892754,0.00011199,2]
[331333405,1720248512666,666.35339201,0.00011199,2]
[331333410,1720248551968,720.44278656,0.00011199,2]
[331333453,1720248568152,747.34340364,0.00026,120]
[331333458,1720248609107,1904.67152375,0.00011199,2]
[331333460,1720248626253,446.14,0.0001101,2]
[331333472,1720248632375,-163.56605059,0.00012173,2]
[331333474,1720248632384,-156.09285771,0.00012314,2]
[331333477,1720248632394,-163.5876468,0.00012314,2]
[331333479,1720248632403,-155.22004843,0.00012314,2]
[331333480,1720248632412,-151.56027566,0.000126,2]
[331333481,1720248632422,-497.29,0.00012928,2]
[331333482,1720248632431,-250.0,0.00012938,2]
[331333483,1720248632441,-315.65426316,0.00013128,2]
[331333484,1720248632453,-51.49403236,0.00013128,2]
[331333485,1720248632462,-357.62742868,0.00013128,2]
[331333486,1720248632474,-133.98948766,0.00013128,2]
[331333487,1720248632484,-446.14,0.00013274,2]
[331333488,1720248632496,-200.0,0.00013354,2]
[331333489,1720248632506,-1232.85205701,0.0001358,2]
[331333490,1720248632517,-300.0,0.00013589,2]
[331333491,1720248632824,-156.02,0.0001359,2]
[331333492,1720248632834,-21595.43967206,0.0001359,2]
[331333493,1720248632847,-2240.90032794,0.0001359,2]
[331333494,1720248632858,-250.0,0.00013623,2]
[331333495,1720248632869,-123.18092884,0.00013699,2]
[331333496,1720248632880,-76.81907116,0.00013699,2]
[331333497,1720248632889,-840.27,0.00013699,2]
[331333498,1720248632900,-156.28,0.00013744,2]
[331333499,1720248632910,-156.28,0.00013787,2]
[331333500,1720248632919,-156.28,0.00013829,2]
[331333501,1720248632929,-923.91075421,0.00013855,2]
[331333502,1720248632940,-297.86256585,0.00013855,2]
[331333503,1720248632951,-1529.22667994,0.00013855,2]
[331333504,1720248632960,-156.28,0.00013871,2]
[331333505,1720248632969,-163.56605059,0.00013875,2]
[331333506,1720248632981,-299.99,0.00013899,2]
[331333507,1720248632991,-454.65033933,0.00013899,2]
[331333508,1720248633003,-45.33966067,0.00013899,2]
[331333509,1720248633012,-150.0,0.00013899,2]
[331333510,1720248633022,-747.92778027,0.000139,2]
[331333511,1720248633039,-574.32971375,0.000139,2]
[331333512,1720248633052,-9231.37963767,0.000139,2]
[331333513,1720248633063,-514.29235671,0.000139,2]
[331333514,1720248633076,-7762.6841841,0.000139,2]
[331333515,1720248633094,-22233.9163275,0.000139,2]
[331333516,1720248633111,-358.73647103,0.000139,2]
[331333519,1720248638364,-544.38170658,0.000139,2]
[331333521,1720248638376,-18982.66692239,0.000139,2]
[331333523,1720248638386,-400.62434463,0.00013905,2]
[331333524,1720248638396,-156.28,0.00013913,2]
[331333525,1720248638406,-307.71884386,0.00013939,2]
[331333526,1720248638416,-156.28,0.00013955,2]
[331333527,1720248638426,-314.76,0.00013965,3]
[331333528,1720248638436,-7141.22587795,0.00013975,2]
[331333529,1720248638448,-33912.84106052,0.00013975,2]
[331333530,1720248638459,-4278.68357977,0.00013975,2]
[331333531,1720248638470,-328.32553262,0.00013975,2]
[331333532,1720248638480,-222.39746096,0.00013975,2]
[331333533,1720248638490,-349.1818636,0.00013975,2]
[331333534,1720248638501,-201.01542285,0.0001399,2]
[331333535,1720248638511,-201.01542285,0.0001399,2]
[331333536,1720248638522,-201.01542285,0.0001399,2]
[331333537,1720248638532,-156.28,0.00013997,2]
[331333538,1720248638542,-587.15529034,0.00014,2]
[331333539,1720248638555,-264.54053448,0.00014,2]
[331333540,1720248638569,-4301.317335,0.00014,2]
[331333541,1720248638580,-956.99378914,0.00014,2]
[331333542,1720248638592,-854.50007257,0.00014,2]
[331333543,1720248638603,-76719.861807,0.00014,2]
[331333544,1720248638614,-548.096,0.00014,2]
[331333545,1720248638625,-584.51193924,0.00014,2]
[331333546,1720248638637,-251.60714365,0.00014,2]
[331333547,1720248638649,-1264.43557993,0.00014,2]
[331333548,1720248638660,-4904.71709853,0.00014,2]
[331333549,1720248638673,-453.83983433,0.00014,2]
[331333550,1720248638685,-332.57131004,0.00014,2]
[331333551,1720248638697,-2067.86079862,0.00014,2]
[331333552,1720248638709,-421.399227,0.00014,2]
[331333553,1720248638721,-5911.40242929,0.00014,2]
[331333554,1720248638733,-1169.55400002,0.00014,2]
[331333555,1720248638745,-2644.17619719,0.00014,2]
[331333556,1720248638757,-1019.83248483,0.00014,2]
[331333600,1720248640733,-813.90015,0.00014,2]
[331333601,1720248640747,-2182.3656423,0.00014,2]
[331333602,1720248640758,-269.49698536,0.00014,2]
[331333603,1720248640770,-1773.35208208,0.00014,2]
[331333604,1720248640782,-29423.28434707,0.00014,2]
[331333605,1720248640793,-463458.3689264,0.00014,2]
[331333606,1720248640805,-73430.45188998,0.00014,2]
[331333607,1720248640817,-1819.63721907,0.00014,2]
[331333608,1720248640828,-3896.57759999,0.00014,2]
[331333609,1720248640841,-816624.29045194,0.00014,2]
[331333610,1720248640854,-6582.02504383,0.00014,2]
[331333611,1720248642082,-72285.40590301,0.00014,2]
[331333612,1720248642093,-1699.26,0.00014,2]
[331333613,1720248642106,-663.40626513,0.00014,2]
[331333615,1720248642118,-3922.53151645,0.00014,2]
[331333617,1720248642129,-714.21663336,0.00014,2]
[331333619,1720248642140,-5071.43030025,0.00014,2]
[331333621,1720248642151,-3244.23092751,0.00014,2]
[331333624,1720248642165,-599.72499997,0.00014,2]
[331333626,1720248642180,-733.39118826,0.00014,2]
[331333628,1720248642191,-10980.32579131,0.00014,2]
[331333759,1720248644133,-1407.0,0.00014,2]
[331333763,1720248644144,-15734.20194805,0.00014,2]
[331333765,1720248644158,-5967.57370409,0.00014,2]
[331333968,1720248648929,-4704.000003,0.00014,2]
[331334008,1720248649779,-356.28823575,0.00014,2]
[331334009,1720248649790,-2668.51092724,0.00014,2]
[331334011,1720249251067,459.78860943,0.00011199,2]
[331334012,1720249251098,27341.75555336,0.00011199,2]
[331334013,1720249251126,7793.92408431,0.00011199,2]
[331334014,1720249366118,553.13450584,0.00011199,2]
[331334015,1720249418848,22226.55031752,0.00011199,2]
[331334016,1720249462645,191.08195248,0.00011199,2]
[331334017,1720249482012,1452.54724,0.00011199,2]
[331334018,1720249561420,400.0,0.00011199,2]
[331334040,1720249832449,242.0912,0.00011199,2]
[331334051,1720249833128,-264.6200961,0.00012314,2]
[331334052,1720249833137,-337.89304513,0.00012459,2]
[331334053,1720249833148,-96.37695487,0.00012459,2]
[331334054,1720249833158,-194.92136016,0.00013028,2]
[331334055,1720249833167,-250.0,0.00013389,2]
[331334056,1720249833178,-475.71197158,0.00013472,2]
[331334057,1720249833187,-400.0,0.00013472,2]
[331334058,1720249833197,-3123.46048771,0.00013759,2]
[331334059,1720249833207,-239.5842,0.00013774,2]
[331334060,1720249833216,-1000.0,0.000138,14]
[331334061,1720249833226,-300.0,0.00013874,2]
[331334062,1720249833236,-300.0,0.00013874,2]
[331334063,1720249833245,-175.2716,0.00013875,2]
[331334064,1720249833255,-4764.8295,0.00013875,2]
[331334065,1720249833266,-230.0229,0.00013875,2]
[331334066,1720249833275,-155.10274349,0.00013899,2]
[331334067,1720249833286,-1000.0,0.000139,5]
[331334068,1720249833300,-41577.118,0.000139,2]
[331334069,1720249833310,-10087.9988,0.000139,2]
[331334070,1720249833320,-1285.3297,0.000139,2]
[331334071,1720249833330,-940.7291,0.000139,2]
[331334072,1720249833341,-15679.4269,0.000139,2]
[331334073,1720249833350,-3400.4621,0.000139,2]
[331334074,1720249833360,-1612.39,0.00013903,2]
[331334075,1720249833369,-503.34166902,0.00013939,2]
[331334076,1720249833379,-9387.3367725,0.00013957,2]
[331334077,1720249833389,-339.02596404,0.00013957,2]
[331334078,1720249833399,-2268.3890246,0.00013957,2]
[331334079,1720249833409,-769.14242717,0.00013957,2]
[331334080,1720249833419,-499.99,0.00013982,2]
[331334081,1720249833429,-184.60793836,0.0001399,2]
[331334082,1720249833443,-203085.66700471,0.00014,2]
[331334083,1720249833455,-1264.92213148,0.00014,2]
[331334084,1720249833466,-803.69185319,0.00014,2]
[331334085,1720249833478,-1541.9914002,0.00014,2]
[331334087,1720249839685,-322.33585586,0.00014,2]
[331334088,1720249839698,-345.92275478,0.00014,2]
[331334089,1720249839711,-30216.56713675,0.00014,2]
[331334129,1720249840393,-1263.9584336,0.00014,2]
[331334130,1720249840405,-10078.58322603,0.00014,2]
[331334131,1720249840418,-321707.49982434,0.00014,2]
[331334132,1720249840432,-227402.11103886,0.00014,2]
[331334202,1720249847960,-2378.1233349,0.00013999,2]
[331334204,1720249847969,-72621.8766651,0.00014,2]
[331334206,1720249847984,-353.33386895,0.00014,2]
[331334282,1720249850381,-282.01027406,0.00014,2]
[331334283,1720249850393,-2343.36758848,0.00014,2]
[331334284,1720249850405,-848.78622332,0.00014,2]
[331334285,1720249850417,-4095.58485922,0.00014,2]
[331334286,1720249850428,-674.568832,0.00014,2]
[331334287,1720249850445,-6567.02075197,0.00014,2]
[331334288,1720249850667,-515.959092,0.00014,2]
[331334289,1720249850680,-1156.80427756,0.00014,2]
[331334290,1720249850691,-438.55108113,0.00014,2]
[331334291,1720249850704,-355.99679615,0.00014,2]
[331334292,1720250136411,459.78860943,0.00011199,2]
[331334293,1720250136439,719.92241163,0.00011199,2]
[331334294,1720250174757,17249.14682295,0.00011199,2]
[331334295,1720250179167,349.13404091,0.00011199,2]
[331334296,1720250207164,291.30212659,0.00011199,2]
[331334297,1720250210668,704.93803457,0.00011199,2]
[331334298,1720250226005,470.60854817,0.00011199,2]
[331334299,1720250238347,227.19964772,0.00011199,2]
[331334300,1720250244036,156.21234032,0.00011199,2]
[331334301,1720250246854,473.94679438,0.00011199,2]
[331334302,1720250267920,346.5178534,0.00011199,2]
[331334303,1720250278130,254.227224,0.00011199,2]
[331334304,1720250285278,264.6200961,0.00011199,2]
[331334305,1720250308496,692.66981445,0.00011199,2]
[331334306,1720250308527,263.59396995,0.00011199,2]
[331334307,1720250362220,382.92925298,0.00011199,2]
[331334309,1720250454457,400.0,0.00011199,2]
[331334311,1720250592172,455.7523627,0.00011199,2]
[331334312,1720250595419,156.41844146,0.00011199,2]
[331334313,1720250618237,297.75236348,0.00011199,2]
[331334314,1720250708672,337.09590134,0.00011199,2]
[331334339,1720250946173,400.0,0.00011199,2]
[331334344,1720250968582,22598.31692597,0.00011199,2]
[331334396,1720251039420,-506.11,0.00011355,2]
[331334397,1720251039431,-166.2324,0.00011902,2]
[331334398,1720251039444,-1501.89924544,0.00011902,2]
[331334399,1720251039455,-179.61027696,0.00012002,2]
[331334400,1720251039466,-1399.81555245,0.00012302,2]
[331334401,1720251039477,-1049.14876905,0.00012302,2]
[331334402,1720251039491,-215.17318843,0.00012302,2]
[331334403,1720251039501,-400.0,0.00012922,2]
[331334404,1720251039511,-2308.19,0.00012982,2]
[331334405,1720251039523,-250.0,0.00013015,2]
[331334406,1720251039535,-1815.72,0.0001302,2]
[331334407,1720251039545,-155.10726069,0.00013128,2]
[331334408,1720251039556,-208.63065251,0.00013128,2]
[331334409,1720251039566,-207.47,0.0001317,2]
[331334410,1720251039577,-1284.0,0.00013448,2]
[331334411,1720251039587,-400.0,0.00013574,2]
[331334412,1720251039598,-384.49667731,0.00013574,2]
[331334413,1720251039608,-624.28077392,0.00013574,2]
[331334414,1720251039619,-315.47416888,0.00013574,2]
[331334415,1720251039629,-8332.57851715,0.00013574,2]
[331334416,1720251039639,-1349.30240083,0.00013574,2]
[331334417,1720251039650,-506.11,0.00013619,2]
[331334418,1720251039660,-540.34,0.00013699,2]
[331334419,1720251039672,-156.28,0.00013793,2]
[331334420,1720251039684,-156.28,0.00013865,2]
[331334421,1720251039696,-512.9635591,0.00013899,2]
[331334422,1720251039707,-24652.894381,0.000139,2]
[331334423,1720251039720,-177.6285143,0.000139,2]
[331334424,1720251039731,-5942.26883463,0.000139,2]
[331334425,1720251039740,-617.9493,0.000139,2]
[331334426,1720251039751,-416.2531,0.000139,2]
[331334427,1720251039761,-6322.99191225,0.000139,2]
[331334428,1720251039773,-156.4926675,0.000139,2]
[331334429,1720251039784,-24561.92173325,0.000139,2]
[331334430,1720251039794,-1641.28936405,0.000139,2]
[331334431,1720251039804,-203.93691935,0.000139,2]
[331334432,1720251039815,-2714.7128881,0.000139,2]
[331334433,1720251039829,-440.39586809,0.000139,2]
[331334434,1720251039840,-1121.02137904,0.000139,2]
[331334435,1720251039851,-1121.02137904,0.000139,2]
[331334436,1720251039861,-156.28,0.00013936,2]
[331334437,1720251039871,-627.42,0.00013964,2]
[331334438,1720251039882,-173.37,0.00013987,2]
[331334439,1720251039892,-250.0,0.00013987,2]
[331334440,1720251039904,-240.84493979,0.0001399,2]
[331334441,1720251039914,-240.84493979,0.0001399,2]
[331334442,1720251039925,-240.84493979,0.0001399,2]
[331334443,1720251039936,-209.91281256,0.00013999,2]
[331334444,1720251039947,-5924.47803761,0.00013999,2]
[331334445,1720251039959,-156.1108163,0.00013999,2]
[331334446,1720251039969,-834704.46929015,0.00014,2]
[331334447,1720251039987,-829.0,0.00014,2]
[331334448,1720251040000,-5865.45045287,0.00014,2]
[331334449,1720251040013,-933.55485723,0.00014,2]
[331334450,1720251040026,-257.23433876,0.00014,2]
[331334451,1720251040039,-747.70566124,0.00014,2]
[331334452,1720251040051,-2748.05976961,0.00014,2]
[331334453,1720251040064,-567.12177962,0.00014,2]
[331334454,1720251040077,-619.65174307,0.00014,2]
[331334455,1720251040090,-8896.76130748,0.00014,2]
[331334456,1720251040103,-2287.74841182,0.00014,2]
[331334457,1720251040115,-363.76455997,0.00014,2]
[331334458,1720251040128,-1666.21666469,0.00014,2]
[331334459,1720251040140,-741.8811006,0.00014,2]
[331334460,1720251040152,-1263.95411139,0.00014,2]
[331334461,1720251040165,-7364.08806245,0.00014,2]
[331334462,1720251040178,-3406.03390733,0.00014,2]
[331334463,1720251040191,-2522.06617273,0.00014,2]
[331334464,1720251040205,-7384.92556584,0.00014,2]
[331334465,1720251040218,-3064.60664569,0.00014,2]
[331334466,1720251040232,-12103.70169624,0.00014,2]
[331334467,1720251040244,-784.34351086,0.00014,2]
[331334468,1720251040258,-2181.13335379,0.00014,2]
[331334469,1720251040270,-2629.46332568,0.00014,2]
[331334470,1720251040283,-47562.56452375,0.00014,2]
[331334567,1720251041464,-2650.0959464,0.000139,2]
[331334568,1720251041474,-424.1585536,0.00014,2]
[331334569,1720251041485,-1973.84237263,0.00014,2]
[331334570,1720251041497,-438.29,0.00014,2]
[331334571,1720251041509,-975.42738337,0.00014,2]
[331334572,1720251041520,-729.5363186,0.00014,2]
[331334576,1720251042314,-650.31138751,0.00014,2]
[331334577,1720251042326,-1191.88699385,0.00014,2]
[331334578,1720251042339,-9894.76560632,0.00014,2]
[331334579,1720251042351,-1487.92434299,0.00014,2]
[331334580,1720251042363,-387.72733961,0.00014,2]
[331334581,1720251042376,-338.79383807,0.00014,2]
[331334582,1720251042389,-2069.5359683,0.00014,2]
[331334583,1720251042401,-204206.6491607,0.00014,2]
[331334584,1720251042418,-337.374,0.00014,2]
[331334585,1720251042433,-14579.88125016,0.00014,2]
[331334586,1720251042445,-18722.54820953,0.00014,2]
[331334587,1720251042459,-11478.26866453,0.00014,2]
[331334588,1720251042471,-9417.0797708,0.00014,2]
[331334589,1720251042488,-169535.88831178,0.00014,2]
[331334590,1720251042499,-20666.65004122,0.00014,2]
[331334591,1720251042511,-213807.5000269,0.00014,2]
[331334592,1720251042691,-3258.19472346,0.00014,2]
[331334621,1720251047718,-209.91281256,0.00013999,2]
[331334622,1720251047728,-5924.47803761,0.00013999,2]
[331334623,1720251047737,-690.42699546,0.00014,2]
[331334624,1720251047750,-938.69736974,0.00014,2]
[331334625,1720251047761,-2089.86470127,0.00014,2]
[331334626,1720251047772,-278.97054483,0.00014,2]
[331334627,1720251047785,-6649.48547676,0.00014,2]
[331334628,1720251047796,-771.12580275,0.00014,2]
[331334629,1720251047807,-3532.50406812,0.00014,2]
[331334630,1720251047819,-967.0,0.00014,2]
[331334631,1720251047835,-4083.51108384,0.00014,2]
[331334632,1720251047848,-2696.67068075,0.00014,2]
[331334633,1720251047860,-24154.30826207,0.00014,2]
[331334634,1720251047872,-432.5,0.00014,2]
[331334635,1720251048117,-544.68072996,0.00014,2]
[331334636,1720251048129,-295.12565298,0.00014,2]
[331334637,1720251048141,-501.50580398,0.00014,2]
[331334638,1720251048153,-2103.81490565,0.00014,2]
[331334639,1720251048164,-769.05650803,0.00014,2]
[331334640,1720251048176,-417.50900005,0.00014,2]
[331334641,1720251048188,-382.68521253,0.00014,2]
[331334642,1720251048201,-1033.05017563,0.00014,2]
[331334643,1720251048213,-12179.86378093,0.00014,2]
[331334644,1720251048225,-2479.97084612,0.00014,2]
[331334645,1720251048237,-210053.86328077,0.00014,2]
[331334646,1720251048249,-550.07408249,0.00014,2]
[331334715,1720251051541,-211.11996835,0.00013999,2]
[331334716,1720251051551,-2629.18003165,0.00013999,2]
[331334717,1720251051562,-604.1818458,0.00013999,2]
[331334718,1720251051571,-8687.72781399,0.00014,2]
[331334719,1720251051583,-1838.78,0.00014,2]
[331334720,1720251053523,-6280.06578001,0.00014,2]
[331334721,1720251053534,-286.57326757,0.00014,2]
[331334724,1720251317372,929.57396799,0.00011199,2]
[331334725,1720251335644,1401.95921277,0.00011199,2]
[331334726,1720251372237,686.61774574,0.00011199,2]
[331334729,1720251454650,400.0,0.00011199,2]
[331334731,1720251501505,273.74302174,0.00011199,2]
[331334734,1720251604529,150.0,0.00011199,2]
[331334735,1720251605077,150.0,0.00011199,2]
[331334736,1720251607010,298.89838214,0.00011199,2]
[331334744,1720251876602,400.0,0.00011199,2]
[331334745,1720251887612,615.13931323,0.00011199,2]
[331334746,1720251924781,519.59298252,0.00011199,2]
[331334747,1720251989659,155.61182952,0.00011199,2]
[331334750,1720252034712,266.47095909,0.00011199,2]
[331334772,1720252164694,158.47133143,0.00011199,2]
[331334773,1720252165013,-328.11462221,0.00011297,2]